fUSD/lending_fUSD_20240104
["ID","MTS","AMOUNT","RATE_DAILY","PERIOD"]
[310205299,1704400276322,-500.0,0.00034246,2]
[310205300,1704400276331,-650.88,0.00034246,2]
[310205301,1704400276340,-1047.53,0.00034246,2]
[310205302,1704400276350,-500.0,0.00034246,2]
[310205303,1704400276359,-2743.39,0.00034246,2]
[310205304,1704400276369,-500.0,0.00034246,2]
[310205305,1704400276379,-6488.11,0.00034246,2]
[310205306,1704400276389,-388.7260592,0.00034246,2]
[310205307,1704400276398,-1207.75,0.00034246,2]
[310205308,1704400276408,-500.0,0.00034246,2]
[310205309,1704400276417,-802.32,0.00034246,2]
[310205310,1704400276427,-500.0,0.00034246,2]
[310205311,1704400276436,-500.0,0.00034246,2]
[310205312,1704400276445,-500.0,0.00034246,2]
[310205313,1704400276456,-500.0,0.00034246,2]
[310205314,1704400276465,-2300.26,0.00034246,2]
[310205315,1704400276475,-500.0,0.00034246,2]
[310205316,1704400276485,-500.0,0.00034246,2]
[310205317,1704400276495,-2212.73,0.00034246,2]
[310205318,1704400276504,-564.62,0.00034246,2]
[310205319,1704400276514,-500.0,0.00034246,2]
[310205320,1704400276523,-500.0,0.00034246,2]
[310205321,1704400276534,-8818.63,0.00034246,2]
[310205322,1704400276543,-554.47,0.00034246,2]
[310205323,1704400276554,-500.0,0.00034246,2]
[310205324,1704400276564,-500.0,0.00034246,2]
[310205325,1704400276573,-182.56101809,0.00034246,2]
[310205326,1704400276583,-500.0,0.00034246,2]
[310205327,1704400276594,-1988.3,0.00034246,2]
[310205328,1704400276604,-500.0,0.00034246,2]
[310205329,1704400276614,-1033.94,0.00034246,2]
[310205330,1704400276624,-500.0,0.00034246,2]
[310205331,1704400276635,-500.0,0.00034246,2]
[310205332,1704400276644,-8023.99,0.00034246,2]
[310205333,1704400276654,-2729.72,0.00034246,2]
[310205334,1704400276663,-500.0,0.00034246,2]
[310205335,1704400276675,-500.0,0.00034246,2]
[310205336,1704400276685,-500.0,0.00034246,2]
[310205337,1704400276695,-1421.2,0.00034246,2]
[310205338,1704400276705,-2075.81,0.00034246,2]
[310205339,1704400276716,-500.0,0.00034246,2]
[310205340,1704400276726,-2507.15,0.00034246,2]
[310205341,1704400276735,-1492.24,0.00034246,2]
[310205342,1704400276744,-500.0,0.00034246,2]
[310205343,1704400276755,-500.0,0.00034246,2]
[310205344,1704400276766,-500.0,0.00034246,2]
[310205345,1704400276776,-500.0,0.00034246,2]
[310205346,1704400276787,-5784.19,0.00034246,2]
[310205347,1704400276797,-1148.25,0.00034246,2]
[310205348,1704400276807,-500.0,0.00034246,2]
[310205349,1704400276817,-500.0,0.00034246,2]
[310205350,1704400276827,-500.0,0.00034246,2]
[310205351,1704400276837,-512.73,0.00034246,2]
[310205352,1704400276847,-500.08,0.00034246,2]
[310205353,1704400276858,-714.23,0.00034246,2]
[310205354,1704400276868,-500.0,0.00034246,2]
[310205355,1704400276878,-500.0,0.00034246,2]
[310205356,1704400276888,-500.0,0.00034246,2]
[310205357,1704400276897,-500.0,0.00034246,2]
[310205358,1704400276908,-500.0,0.00034246,2]
[310205359,1704400276918,-582.44,0.00034246,2]
[310205360,1704400276927,-500.0,0.00034246,2]
[310205361,1704400276937,-500.0,0.00034246,2]
[310205362,1704400276946,-500.0,0.00034246,2]
[310205363,1704400276956,-565.27,0.00034246,2]
[310205364,1704400276965,-799.36,0.00034246,2]
[310205365,1704400276975,-500.0,0.00034246,2]
[310205366,1704400276995,-500.0,0.00034246,2]
[310205367,1704400277006,-500.0,0.00034246,2]
[310205368,1704400277017,-500.0,0.00034246,2]
[310205369,1704400277027,-500.0,0.00034246,2]
[310205370,1704400277038,-1533.04,0.00034246,2]
[310205371,1704400277049,-1291.64,0.00034246,2]
[310205372,1704400277061,-654.95,0.00034246,2]
[310205373,1704400277072,-500.0,0.00034246,2]
[310205374,1704400277085,-1046.38,0.00034246,2]
[310205375,1704400277096,-500.0,0.00034246,2]
[310205376,1704400277108,-500.0,0.00034246,2]
[310205377,1704400277120,-1168.15,0.00034246,2]
[310205378,1704400277130,-1279.36,0.00034246,2]
[310205379,1704400277145,-500.0,0.00034246,2]
[310205380,1704400277156,-500.0,0.00034246,2]
[310205381,1704400277168,-774.31,0.00034246,2]
[310205382,1704400277180,-500.0,0.00034246,2]
[310205383,1704400277190,-1178.66,0.00034246,2]
[310205384,1704400277201,-2705.72,0.00034246,2]
[310205385,1704400277212,-500.0,0.00034246,2]
[310205386,1704400277222,-540.01,0.00034246,2]
[310205387,1704400277232,-500.0,0.00034246,2]
[310205388,1704400277242,-800.68,0.00034246,2]
[310205389,1704400277253,-683.02,0.00034246,2]
[310205390,1704400277263,-500.0,0.00034246,2]
[310205391,1704400277273,-1033.15,0.00034246,2]
[310205392,1704400277284,-500.0,0.00034246,2]
[310205393,1704400277294,-500.0,0.00034246,2]
[310205394,1704400277306,-664.5,0.00034246,2]
[310205395,1704400277316,-5429.5,0.00034246,2]
[310205396,1704400277327,-787.99,0.00034246,2]
[310205397,1704400277337,-500.0,0.00034246,2]
[310205398,1704400277348,-500.0,0.00034246,2]
[310205399,1704400277358,-1185.9,0.00034246,2]
[310205400,1704400277368,-500.0,0.00034246,2]
[310205401,1704400277378,-502.99,0.00034246,2]
[310205402,1704400277390,-803.67,0.00034246,2]
[310205403,1704400277401,-500.0,0.00034246,2]
[310205404,1704400277410,-703.08,0.00034246,2]
[310205405,1704400277420,-931.91,0.00034246,2]
[310205406,1704400277430,-500.0,0.00034246,2]
[310205407,1704400277439,-500.0,0.00034246,2]
[310205408,1704400277450,-3045.47,0.00034246,2]
[310205409,1704400277459,-500.0,0.00034246,2]
[310205410,1704400277469,-500.0,0.00034246,2]
[310205411,1704400277481,-924.28,0.00034246,2]
[310205412,1704400277492,-500.0,0.00034246,2]
[310205413,1704400277503,-612.45,0.00034246,2]
[310205414,1704400277514,-1664.58,0.00034246,2]
[310205415,1704400277525,-1719.17,0.00034246,2]
[310205416,1704400277536,-650.67,0.00034246,2]
[310205417,1704400277546,-500.0,0.00034246,2]
[310205418,1704400277555,-837.7,0.00034246,2]
[310205419,1704400277566,-651.85,0.00034246,2]
[310205420,1704400277576,-1763.88,0.00034246,2]
[310205421,1704400277586,-500.0,0.00034246,2]
[310205422,1704400277597,-500.0,0.00034246,2]
[310205423,1704400277606,-5455.26,0.00034246,2]
[310205424,1704400277616,-595.32,0.00034246,2]
[310205425,1704400277625,-500.0,0.00034246,2]
[310205426,1704400277636,-500.0,0.00034246,2]
[310205427,1704400277646,-500.0,0.00034246,2]
[310205428,1704400277657,-864.85,0.00034246,2]
[310205429,1704400277668,-1546.03,0.00034246,2]
[310205430,1704400277677,-500.0,0.00034246,2]
[310205431,1704400277688,-618.44,0.00034246,2]
[310205432,1704400277699,-500.0,0.00034246,2]
[310205433,1704400277710,-1928.75,0.00034246,2]
[310205434,1704400277721,-500.0,0.00034246,2]
[310205435,1704400277731,-500.0,0.00034246,2]
[310205436,1704400277742,-575.7,0.00034246,2]
[310205437,1704400277753,-589.02,0.00034246,2]
[310205438,1704400277763,-2873.21,0.00034246,2]
[310205439,1704400277774,-500.0,0.00034246,2]
[310205440,1704400277785,-500.0,0.00034246,2]
[310205441,1704400277796,-501.82,0.00034246,2]
[310205442,1704400277807,-500.0,0.00034246,2]
[310205443,1704400277818,-500.0,0.00034246,2]
[310205444,1704400277829,-500.0,0.00034246,2]
[310205445,1704400277840,-500.0,0.00034246,2]
[310205446,1704400277850,-902.0,0.00034246,2]
[310205447,1704400277861,-500.0,0.00034246,2]
[310205448,1704400277872,-1565.07,0.00034246,2]
[310205449,1704400277883,-500.0,0.00034246,2]
[310205450,1704400277894,-1472.89,0.00034246,2]
[310205451,1704400277904,-6496.65,0.00034246,2]
[310205452,1704400277915,-500.0,0.00034246,2]
[310205453,1704400277924,-864.86,0.00034246,2]
[310205454,1704400277934,-500.0,0.00034246,2]
[310205455,1704400277944,-500.0,0.00034246,2]
[310205456,1704400277954,-500.0,0.00034246,2]
[310205457,1704400277964,-500.0,0.00034246,2]
[310205458,1704400277974,-500.0,0.00034246,2]
[310205459,1704400277984,-500.0,0.00034246,2]
[310205460,1704400277995,-500.0,0.00034246,2]
[310205461,1704400278005,-659.36,0.00034246,2]
[310205462,1704400278014,-539.42,0.00034246,2]
[310205463,1704400278024,-2834.51,0.00034246,2]
[310205464,1704400278035,-500.0,0.00034246,2]
[310205465,1704400278046,-535.67,0.00034246,2]
[310205466,1704400278056,-500.0,0.00034246,2]
[310205467,1704400278066,-772.31,0.00034246,2]
[310205468,1704400278078,-1511.83,0.00034246,2]
[310205469,1704400278087,-730.25,0.00034246,2]
[310205470,1704400278290,-500.0,0.00034246,2]
[310205471,1704400278301,-500.0,0.00034246,2]
[310205472,1704400278311,-597.99,0.00034246,2]
[310205473,1704400278321,-1373.46,0.00034246,2]
[310205474,1704400278330,-500.0,0.00034246,2]
[310205475,1704400278340,-500.0,0.00034246,2]
[310205476,1704400278349,-1411.58,0.00034246,2]
[310205477,1704400278359,-500.0,0.00034246,2]
[310205478,1704400278368,-844.92,0.00034246,2]
[310205479,1704400278377,-1122.72,0.00034246,2]
[310205480,1704400278387,-500.0,0.00034246,2]
[310205481,1704400278397,-500.0,0.00034246,2]
[310205482,1704400278405,-500.0,0.00034246,2]
[310205483,1704400278415,-938.79,0.00034246,2]
[310205484,1704400278424,-700.27,0.00034246,2]
[310205485,1704400278434,-500.0,0.00034246,2]
[310205486,1704400278443,-500.0,0.00034246,2]
[310205487,1704400278454,-2603.65,0.00034246,2]
[310205488,1704400278464,-500.0,0.00034246,2]
[310205489,1704400278474,-500.0,0.00034246,2]
[310205490,1704400278483,-500.0,0.00034246,2]
[310205491,1704400278494,-690.56,0.00034246,2]
[310205492,1704400278503,-1114.57,0.00034246,2]
[310205493,1704400278515,-500.0,0.00034246,2]
[310205494,1704400278525,-1863.03,0.00034246,2]
[310205495,1704400278534,-500.0,0.00034246,2]
[310205496,1704400278544,-625.26,0.00034246,2]
[310205497,1704400278553,-500.0,0.00034246,2]
[310205498,1704400278562,-1822.1,0.00034246,2]
[310205499,1704400278572,-500.0,0.00034246,2]
[310205500,1704400278582,-500.0,0.00034246,2]
[310205501,1704400278591,-500.0,0.00034246,2]
[310205502,1704400278602,-524.64,0.00034246,2]
[310205503,1704400278614,-715.91,0.00034246,2]
[310205504,1704400278625,-1359.04,0.00034246,2]
[310205505,1704400278635,-541.91,0.00034246,2]
[310205506,1704400278644,-177.02,0.00034277,2]
[310205507,1704400278654,-241.18,0.00034294,2]
[310205508,1704400278664,-756.29,0.00034354,2]
[310205509,1704400278675,-1474.70996629,0.0003445,6]
[310205510,1704400278685,-241.18,0.00034461,2]
[310205511,1704400278695,-177.85,0.00034518,2]
[310205512,1704400278705,-500.0,0.00034519,2]
[310205513,1704400278716,-1013.2,0.00034519,2]
[310205514,1704400278725,-500.0,0.0003452,2]
[310205515,1704400278736,-500.0,0.0003452,2]
[310205516,1704400278746,-500.0,0.0003452,2]
[310205517,1704400278757,-500.0,0.0003452,2]
[310205518,1704400278768,-500.0,0.0003452,2]
[310205519,1704400278777,-500.0,0.0003452,2]
[310205520,1704400278787,-500.0,0.0003452,2]
[310205521,1704400278797,-500.0,0.0003452,2]
[310205522,1704400278808,-500.0,0.0003452,2]
[310205523,1704400278818,-500.0,0.0003452,2]
[310205524,1704400278829,-500.0,0.0003452,2]
[310205525,1704400278839,-500.0,0.0003452,2]
[310205526,1704400278850,-500.0,0.0003452,2]
[310205527,1704400278860,-500.0,0.0003452,2]
[310205528,1704400278870,-500.0,0.0003452,2]
[310205529,1704400278880,-500.0,0.0003452,2]
[310205530,1704400278889,-307.11,0.0003452,2]
[310205531,1704400278900,-624.18009324,0.0003452,2]
[310205532,1704400278911,-151.0,0.0003452,7]
[310205533,1704400278923,-500.0,0.0003452,2]
[310205534,1704400278933,-151.0,0.0003452,7]
[310205535,1704400278943,-500.0,0.0003452,2]
[310205536,1704400278953,-500.0,0.0003452,2]
[310205537,1704400278963,-500.0,0.0003452,2]
[310205538,1704400278973,-500.0,0.0003452,2]
[310205539,1704400278984,-500.0,0.0003452,2]
[310205540,1704400278993,-500.0,0.0003452,2]
[310205541,1704400279004,-500.0,0.0003452,2]
[310205542,1704400279014,-500.0,0.0003452,2]
[310205543,1704400279024,-500.0,0.0003452,2]
[310205544,1704400279035,-574.87,0.0003452,2]
[310205545,1704400279044,-500.0,0.0003452,2]
[310205546,1704400279055,-285.88780984,0.0003452,2]
[310205547,1704400279065,-500.0,0.0003452,2]
[310205548,1704400279075,-809.33,0.0003452,2]
[310205549,1704400279085,-633.3112265,0.0003452,2]
[310205550,1704400279095,-500.0,0.0003452,2]
[310205551,1704400279105,-500.0,0.0003452,2]
[310205552,1704400279115,-500.0,0.0003452,2]
[310205553,1704400279127,-500.0,0.0003452,2]
[310205554,1704400279137,-500.0,0.0003452,2]
[310205555,1704400279147,-500.0,0.0003452,2]
[310205556,1704400279157,-637.90966414,0.0003452,2]
[310205557,1704400279168,-500.0,0.0003452,2]
[310205558,1704400279178,-500.0,0.0003452,2]
[310205559,1704400279189,-151.0,0.0003452,7]
[310205560,1704400279201,-500.0,0.0003452,2]
[310205561,1704400279212,-151.0,0.0003452,7]
[310205562,1704400279222,-500.0,0.0003452,2]
[310205563,1704400279231,-500.0,0.0003452,2]
[310205564,1704400279241,-500.0,0.0003452,2]
[310205565,1704400279250,-570.2,0.0003452,2]
[310205566,1704400279259,-500.0,0.0003452,2]
[310205567,1704400279269,-500.0,0.0003452,2]
[310205568,1704400279279,-500.0,0.0003452,2]
[310205569,1704400279289,-500.0,0.0003452,2]
[310205570,1704400279298,-500.0,0.0003452,2]
[310205571,1704400279309,-511.41,0.0003452,2]
[310205572,1704400279318,-500.0,0.0003452,2]
[310205573,1704400279327,-500.0,0.0003452,2]
[310205574,1704400279339,-500.0,0.0003452,2]
[310205575,1704400279349,-500.0,0.0003452,2]
[310205576,1704400279358,-500.0,0.0003452,2]
[310205577,1704400279368,-500.0,0.0003452,2]
[310205578,1704400279378,-500.0,0.0003452,2]
[310205579,1704400279388,-500.0,0.0003452,2]
[310205580,1704400279399,-500.0,0.0003452,2]
[310205581,1704400279409,-826.26,0.0003452,2]
[310205582,1704400279419,-500.0,0.0003452,2]
[310205583,1704400279431,-500.0,0.0003452,2]
[310205584,1704400279440,-1785.82,0.0003452,2]
[310205585,1704400279451,-541.66,0.0003452,2]
[310205586,1704400279462,-500.0,0.0003452,2]
[310205587,1704400279474,-500.0,0.0003452,2]
[310205588,1704400279485,-702.0,0.0003452,2]
[310205589,1704400279495,-500.0,0.0003452,2]
[310205590,1704400279504,-408.60959212,0.0003452,2]
[310205591,1704400279513,-500.0,0.0003452,2]
[310205592,1704400279523,-500.0,0.0003452,2]
[310205593,1704400279533,-261.14806656,0.0003452,2]
[310205594,1704400279542,-713.92,0.0003452,2]
[310205595,1704400279552,-508.08,0.0003452,2]
[310205596,1704400279561,-500.0,0.0003452,2]
[310205597,1704400279571,-500.0,0.0003452,2]
[310205598,1704400279581,-500.0,0.0003452,2]
[310205599,1704400279589,-500.0,0.0003452,2]
[310205600,1704400279599,-500.0,0.0003452,2]
[310205601,1704400279610,-500.0,0.0003452,2]
[310205602,1704400279620,-605.7,0.0003452,2]
[310205603,1704400279629,-500.0,0.0003452,2]
[310205604,1704400279639,-500.0,0.0003452,2]
[310205605,1704400279650,-500.0,0.0003452,2]
[310205606,1704400279661,-617.34,0.0003452,2]
[310205607,1704400279670,-500.0,0.0003452,2]
[310205608,1704400279680,-500.0,0.0003452,2]
[310205609,1704400279690,-1053.81,0.0003452,2]
[310205610,1704400279700,-500.0,0.0003452,2]
[310205611,1704400279710,-500.0,0.0003452,2]
[310205612,1704400279721,-500.0,0.0003452,2]
[310205613,1704400279730,-500.0,0.0003452,2]
[310205614,1704400279740,-500.0,0.0003452,2]
[310205615,1704400279749,-500.0,0.0003452,2]
[310205616,1704400279758,-500.0,0.0003452,2]
[310205617,1704400279767,-500.0,0.0003452,2]
[310205618,1704400279776,-500.0,0.0003452,2]
[310205619,1704400279785,-500.0,0.0003452,2]
[310205620,1704400279795,-637.91,0.0003452,2]
[310205621,1704400279804,-500.0,0.0003452,2]
[310205622,1704400279813,-642.96,0.0003452,2]
[310205623,1704400279823,-500.0,0.0003452,2]
[310205624,1704400279832,-500.0,0.0003452,2]
[310205625,1704400279842,-500.0,0.0003452,2]
[310205626,1704400279851,-500.0,0.0003452,2]
[310205627,1704400279861,-500.0,0.0003452,2]
[310205628,1704400279871,-500.0,0.0003452,2]
[310205629,1704400279881,-500.0,0.0003452,2]
[310205630,1704400279891,-392.71311463,0.0003452,2]
[310205631,1704400279901,-407.76993631,0.0003452,2]
[310205632,1704400279911,-500.0,0.0003452,2]
[310205633,1704400279921,-500.0,0.0003452,2]
[310205634,1704400279930,-500.0,0.0003452,2]
[310205635,1704400279940,-500.0,0.0003452,2]
[310205636,1704400279949,-500.0,0.0003452,2]
[310205637,1704400279959,-500.0,0.0003452,2]
[310205638,1704400279969,-500.0,0.0003452,2]
[310205639,1704400279979,-500.0,0.0003452,2]
[310205640,1704400279989,-500.0,0.0003452,2]
[310205641,1704400280000,-500.0,0.0003452,2]
[310205642,1704400280009,-500.0,0.0003452,2]
[310205643,1704400280019,-500.0,0.0003452,2]
[310205644,1704400280029,-500.0,0.0003452,2]
[310205645,1704400280038,-500.0,0.0003452,2]
[310205646,1704400280048,-500.0,0.0003452,2]
[310205647,1704400280057,-583.92,0.0003452,2]
[310205648,1704400280067,-500.0,0.0003452,2]
[310205649,1704400280076,-386.46,0.0003452,2]
[310205650,1704400280086,-500.0,0.0003452,2]
[310205651,1704400280096,-500.0,0.0003452,2]
[310205652,1704400280105,-500.0,0.0003452,2]
[310205653,1704400280114,-1262.62,0.0003452,2]
[310205654,1704400280124,-644.12,0.0003452,2]
[310205655,1704400280133,-500.0,0.0003452,2]
[310205656,1704400280143,-500.0,0.0003452,2]
[310205657,1704400280152,-500.0,0.0003452,2]
[310205658,1704400280162,-500.0,0.0003452,2]
[310205659,1704400280171,-500.0,0.0003452,2]
[310205660,1704400280181,-500.0,0.0003452,2]
[310205661,1704400280192,-500.0,0.0003452,2]
[310205662,1704400280202,-501.37,0.0003452,2]
[310205663,1704400280211,-500.0,0.0003452,2]
[310205664,1704400280220,-500.0,0.0003452,2]
[310205665,1704400280229,-500.0,0.0003452,2]
[310205666,1704400280239,-511.59,0.0003452,2]
[310205667,1704400280248,-500.0,0.0003452,2]
[310205668,1704400280258,-500.0,0.0003452,2]
[310205669,1704400280267,-361.23082655,0.0003452,2]
[310205670,1704400280276,-500.0,0.0003452,2]
[310205671,1704400280286,-500.0,0.0003452,2]
[310205672,1704400280295,-500.0,0.0003452,2]
[310205673,1704400280305,-500.0,0.0003452,2]
[310205674,1704400280314,-500.0,0.0003452,2]
[310205675,1704400280323,-500.0,0.0003452,2]
[310205676,1704400280333,-500.0,0.0003452,2]
[310205677,1704400280343,-500.0,0.0003452,2]
[310205678,1704400280352,-500.0,0.0003452,2]
[310205679,1704400280362,-500.0,0.0003452,2]
[310205680,1704400280371,-159.65,0.0003452,2]
[310205681,1704400280381,-500.0,0.0003452,2]
[310205682,1704400280390,-500.0,0.0003452,2]
[310205683,1704400280400,-500.0,0.0003452,2]
[310205684,1704400280410,-984.97,0.0003452,2]
[310205685,1704400280419,-500.0,0.0003452,2]
[310205686,1704400280429,-500.0,0.0003452,2]
[310205687,1704400280438,-500.0,0.0003452,2]
[310205688,1704400280448,-246.0752421,0.0003452,2]
[310205689,1704400280458,-500.0,0.0003452,2]
[310205690,1704400280468,-500.0,0.0003452,2]
[310205691,1704400280478,-500.0,0.0003452,2]
[310205692,1704400280488,-471.60237646,0.0003452,2]
[310205693,1704400280498,-500.0,0.0003452,2]
[310205694,1704400280507,-500.0,0.0003452,2]
[310205695,1704400280517,-500.0,0.0003452,2]
[310205696,1704400280527,-500.0,0.0003452,2]
[310205697,1704400280536,-2813.94,0.0003452,2]
[310205698,1704400280547,-500.0,0.0003452,2]
[310205699,1704400280556,-500.0,0.0003452,2]
[310205700,1704400280566,-500.0,0.0003452,2]
[310205701,1704400280575,-500.0,0.0003452,2]
[310205702,1704400280585,-1043.97,0.0003452,2]
[310205703,1704400280594,-815.95,0.0003452,2]
[310205704,1704400280604,-4226.54,0.0003452,2]
[310205705,1704400280614,-579.28,0.0003452,2]
[310205706,1704400280623,-500.0,0.0003452,2]
[310205707,1704400280633,-500.0,0.0003452,2]
[310205708,1704400280642,-500.0,0.0003452,2]
[310205709,1704400280651,-500.0,0.0003452,2]
[310205710,1704400280661,-500.0,0.0003452,2]
[310205711,1704400280671,-500.93,0.0003452,2]
[310205712,1704400280680,-1545.25,0.0003452,2]
[310205713,1704400280690,-500.0,0.0003452,2]
[310205714,1704400280699,-896.7,0.0003452,2]
[310205715,1704400280765,-500.0,0.0003452,2]
[310205716,1704400280774,-500.0,0.0003452,2]
[310205717,1704400280784,-1118.72,0.0003452,2]
[310205718,1704400280793,-766.02,0.0003452,2]
[310205719,1704400280804,-525.53,0.0003452,2]
[310205720,1704400280815,-1839.95,0.0003452,2]
[310205721,1704400280825,-1961.18,0.0003452,2]
[310205722,1704400280835,-666.57,0.0003452,2]
[310205723,1704400280845,-500.0,0.0003452,2]
[310205724,1704400280856,-650.88,0.0003452,2]
[310205725,1704400280866,-1047.53,0.0003452,2]
[310205726,1704400280876,-500.0,0.0003452,2]
[310205727,1704400280887,-2743.39,0.0003452,2]
[310205728,1704400280897,-500.0,0.0003452,2]
[310205729,1704400280908,-6488.11,0.0003452,2]
[310205730,1704400280918,-1207.75,0.0003452,2]
[310205731,1704400280927,-500.0,0.0003452,2]
[310205732,1704400280937,-802.32,0.0003452,2]
[310205733,1704400280947,-500.0,0.0003452,2]
[310205734,1704400280957,-500.0,0.0003452,2]
[310205735,1704400280967,-2300.26,0.0003452,2]
[310205736,1704400280977,-500.0,0.0003452,2]
[310205737,1704400280988,-2212.73,0.0003452,2]
[310205738,1704400280998,-564.62,0.0003452,2]
[310205739,1704400281009,-500.0,0.0003452,2]
[310205740,1704400281019,-500.0,0.0003452,2]
[310205741,1704400281030,-8818.63,0.0003452,2]
[310205742,1704400281040,-554.47,0.0003452,2]
[310205743,1704400281050,-500.0,0.0003452,2]
[310205744,1704400281060,-500.0,0.0003452,2]
[310205745,1704400281070,-1988.3,0.0003452,2]
[310205746,1704400281080,-500.0,0.0003452,2]
[310205747,1704400281090,-500.0,0.0003452,2]
[310205748,1704400281101,-1033.94,0.0003452,2]
[310205749,1704400281111,-500.0,0.0003452,2]
[310205750,1704400281121,-500.0,0.0003452,2]
[310205751,1704400281131,-8023.99,0.0003452,2]
[310205752,1704400281142,-2729.72,0.0003452,2]
[310205753,1704400281153,-500.0,0.0003452,2]
[310205754,1704400281164,-500.0,0.0003452,2]
[310205755,1704400281175,-500.0,0.0003452,2]
[310205756,1704400281186,-1421.2,0.0003452,2]
[310205757,1704400281197,-2075.81,0.0003452,2]
[310205758,1704400281208,-2507.15,0.0003452,2]
[310205759,1704400281219,-500.0,0.0003452,2]
[310205760,1704400281230,-1492.24,0.0003452,2]
[310205761,1704400281240,-500.0,0.0003452,2]
[310205762,1704400281250,-500.0,0.0003452,2]
[310205763,1704400281259,-500.0,0.0003452,2]
[310205764,1704400281268,-500.0,0.0003452,2]
[310205765,1704400281279,-5784.19,0.0003452,2]
[310205766,1704400281289,-1148.25,0.0003452,2]
[310205767,1704400281299,-500.0,0.0003452,2]
[310205768,1704400281310,-500.0,0.0003452,2]
[310205769,1704400281321,-500.0,0.0003452,2]
[310205770,1704400281331,-512.73,0.0003452,2]
[310205771,1704400281342,-500.08,0.0003452,2]
[310205772,1704400281351,-714.23,0.0003452,2]
[310205773,1704400281361,-500.0,0.0003452,2]
[310205774,1704400281371,-500.0,0.0003452,2]
[310205775,1704400281381,-500.0,0.0003452,2]
[310205776,1704400281393,-500.0,0.0003452,2]
[310205777,1704400281403,-500.0,0.0003452,2]
[310205778,1704400281412,-582.44,0.0003452,2]
[310205779,1704400281421,-500.0,0.0003452,2]
[310205780,1704400281430,-500.0,0.0003452,2]
[310205781,1704400281441,-500.0,0.0003452,2]
[310205782,1704400281450,-565.27,0.0003452,2]
[310205783,1704400281460,-799.36,0.0003452,2]
[310205784,1704400281472,-500.0,0.0003452,2]
[310205785,1704400281481,-500.0,0.0003452,2]
[310205786,1704400281492,-500.0,0.0003452,2]
[310205787,1704400281502,-500.0,0.0003452,2]
[310205788,1704400281513,-500.0,0.0003452,2]
[310205789,1704400281523,-1291.64,0.0003452,2]
[310205790,1704400281533,-1533.04,0.0003452,2]
[310205791,1704400281543,-654.95,0.0003452,2]
[310205792,1704400281554,-500.0,0.0003452,2]
[310205793,1704400281564,-1046.38,0.0003452,2]
[310205794,1704400281574,-500.0,0.0003452,2]
[310205795,1704400281584,-1168.15,0.0003452,2]
[310205796,1704400281595,-1279.36,0.0003452,2]
[310205797,1704400281606,-500.0,0.0003452,2]
[310205798,1704400281617,-500.0,0.0003452,2]